fUSD/lending_fUSD_20240123
["ID","MTS","AMOUNT","RATE_DAILY","PERIOD"]
[312578710,1706021855107,-4630.81540604,0.00022022,2]
[312578711,1706021855130,-1813.68084069,0.00022022,2]
[312578712,1706021855154,-1042.33733188,0.00022023,2]
[312578713,1706021855175,-2309.13609472,0.00022023,2]
[312578714,1706021855195,-941.46518137,0.00022024,2]
[312578715,1706021855214,-622.62568775,0.00022024,2]
[312578716,1706021855236,-157.83,0.00022025,2]
[312578717,1706021855257,-234.67799973,0.00022025,2]
[312578718,1706021855278,-150.0,0.00022085,2]
[312578719,1706021855300,-8896.25482088,0.00022086,2]
[312578720,1706021873671,-417.79251044,0.00022058,2]
[312578721,1706021873692,-623.55097769,0.00022058,2]
[312578722,1706021873715,-234.67799973,0.00022076,2]
[312578723,1706021873737,-723.97851214,0.00022086,2]
[312578724,1706021896397,1035.1,0.00021751,2]
[312578725,1706021896659,-1000.0,0.00022086,2]
[312578726,1706021899407,853.22,0.0002173,2]
[312578727,1706021916023,500.0,0.00021749,3]
[312578728,1706021943815,600.0,0.00021726,2]
[312578729,1706021991820,488.08,0.00021743,2]
[312578730,1706022039105,2000.0,0.00021718,2]
[312578731,1706022039133,-279.6116952,0.00022082,2]
[312578732,1706022039154,-155.0,0.00022083,2]
[312578733,1706022039176,-150.0,0.00022085,2]
[312578734,1706022039205,-23169.44720282,0.00022086,2]
[312578735,1706022039228,-733.18,0.0002209,2]
[312578736,1706022039251,-234.67799973,0.00022128,2]
[312578737,1706022039271,-280.00500662,0.00022137,2]
[312578738,1706022039293,-234.67799973,0.00022179,2]
[312578739,1706022039314,-1362.48,0.00022183,2]
[312578740,1706022039337,-234.67799973,0.00022231,2]
[312578741,1706022039360,-502.25,0.00022252,2]
[312578742,1706022039382,-150.99,0.00022252,2]
[312578743,1706022039405,-1346.15,0.00022252,2]
[312578744,1706022039426,-2974.57,0.00022252,2]
[312578745,1706022039461,-234.67799973,0.00022282,2]
[312578746,1706022039486,-157.83,0.00022312,2]
[312578747,1706022039510,-234.67799973,0.00022334,2]
[312578748,1706022039532,-208.99,0.00022384,2]
[312578749,1706022039557,-840.0,0.00022384,2]
[312578750,1706022039581,-790.26,0.00022384,2]
[312578751,1706022039603,-19725.84609671,0.00022384,2]
[312578752,1706022066183,401.32,0.00021864,2]
[312578753,1706022085278,250.0,0.00021918,2]
[312578754,1706022088828,200.0,0.00021868,2]
[312578755,1706022109293,153.33,0.00021875,10]
[312578756,1706022114057,17483.45,0.00021878,2]
[312578757,1706022128601,856.49,0.00021875,2]
[312578758,1706022143343,176.47,0.00022,2]
[312578759,1706022151148,328.0,0.00021855,2]
[312578760,1706022154048,658.55,0.00021855,2]
[312578761,1706022186731,150.0,0.00022,2]
[312578762,1706022242362,366.59,0.00021854,2]
[312578763,1706022243853,452.02,0.00019936,2]
[312578764,1706022251736,250.0,0.00021847,2]
[312578765,1706022325620,200.0,0.00021831,2]
[312578766,1706022348109,-157.83,0.00022011,2]
[312578767,1706022348130,-452.02,0.000222,2]
[312578768,1706022348151,-499.99,0.00022384,2]
[312578769,1706022348177,-234.67799973,0.00022385,2]
[312578770,1706022348196,-234.67799973,0.00022437,2]
[312578771,1706022348216,-234.67799973,0.00022488,2]
[312578772,1706022348236,-362.61066741,0.000225,2]
[312578773,1706022348254,-2784.20444642,0.000225,2]
[312578774,1706022348276,-234.67799973,0.0002254,2]
[312578775,1706022348300,-488.08,0.00022547,2]
[312578776,1706022348324,-176.47,0.00022548,2]
[312578777,1706022348349,-157.83,0.00022585,2]
[312578778,1706022348373,-234.67799973,0.00022591,2]
[312578779,1706022348396,-150.0,0.00022598,2]
[312578780,1706022348423,-4077.69,0.00022599,2]
[312578781,1706022348454,-9999.99,0.00022599,2]
[312578782,1706022348481,-234.67799973,0.00022643,2]
[312578783,1706022348504,-234.67799973,0.00022694,2]
[312578784,1706022348527,-234.67799973,0.00022746,2]
[312578785,1706022348550,-222.52871988,0.00022767,4]
[312578786,1706022348571,-281.17948363,0.00022768,2]
[312578787,1706022348594,-234.67799973,0.00022797,2]
[312578788,1706022348616,-1468.0057,0.000228,2]
[312578789,1706022348639,-234.67799973,0.00022849,2]
[312578790,1706022348665,-185.00571935,0.00022877,2]
[312578791,1706022348686,-986.97926005,0.00022877,2]
[312578792,1706022348708,-6212.49433706,0.0002288,2]
[312578793,1706022348728,-195.10400093,0.0002288,2]
[312578794,1706022348750,-462.50766797,0.00022882,2]
[312578795,1706022382290,200.0,0.00021943,2]
[312578796,1706022414293,292.84,0.00021938,2]
[312578797,1706022430121,-300.0,0.000222,8]
[312578798,1706022430141,-600.0,0.000223,8]
[312578799,1706022430160,-517.06190698,0.00022749,2]
[312578800,1706022430180,-292.84,0.0002275,2]
[312578801,1706022430200,-5000.0,0.00022876,2]
[312578802,1706022430222,-173.56693808,0.00022877,2]
[312578803,1706022430243,-5749.98666903,0.00022882,2]
[312578804,1706022430263,-986.97926003,0.00022883,2]
[312578805,1706022430284,-150.0,0.00022883,2]
[312578806,1706022430303,-227.70232845,0.00022883,2]
[312578807,1706022430328,-6212.494337,0.00022884,2]
[312578808,1706022430347,-6212.494337,0.00022885,2]
[312578809,1706022430368,-6212.494337,0.00022887,2]
[312578810,1706022430389,-185.00571935,0.00022889,2]
[312578811,1706022430409,-986.97926003,0.00022889,2]
[312578812,1706022430429,-6212.494337,0.00022889,2]
[312578813,1706022430449,-6212.494337,0.00022891,2]
[312578814,1706022430472,-6212.494337,0.00022893,2]
[312578815,1706022430495,-986.97926003,0.00022894,2]
[312578816,1706022430515,-6212.494337,0.00022895,2]
[312578817,1706022430535,-6212.494337,0.00022896,2]
[312578818,1706022430555,-413.3372,0.00022898,2]
[312578819,1706022430575,-6212.494337,0.00022898,2]
[312578820,1706022430596,-6212.494337,0.000229,2]
[312578821,1706022430617,-234.67799973,0.000229,2]
[312578822,1706022430636,-185.00571935,0.000229,2]
[312578823,1706022430656,-986.97926003,0.000229,2]
[312578824,1706022430677,-155.57731496,0.000229,2]
[312578825,1706022430698,-835.7039401,0.000229,6]
[312578826,1706022430723,-169.6775118,0.000229,2]
[312578827,1706022430743,-12283.37478738,0.000229,2]
[312578828,1706022430763,-38847.62805851,0.000229,2]
[312578829,1706022432005,-900.0,0.000224,8]
[312578830,1706022432024,-4564.82578433,0.000229,2]
[312578831,1706022434078,-1200.0,0.000225,8]
[312578832,1706022434098,-12142.54615716,0.000229,2]
[312578833,1706022434120,-151.12841012,0.00022966,2]
[312578834,1706022434139,-301.25336037,0.00022974,2]
[312578835,1706022434160,-1002.27619873,0.00022974,2]
[312578836,1706022434181,-203.14380127,0.00022974,2]
[312578837,1706022434201,-169.9432632,0.00022975,2]
[312578838,1706022434221,-30222.17832068,0.00022975,2]
[312578839,1706022434241,-26224.17795876,0.00022976,2]
[312578849,1706022631426,-250.0,0.00022315,2]
[312578850,1706022631436,-2000.0,0.0002257,2]
[312578851,1706022631445,-1500.0,0.000226,8]
[312578852,1706022631455,-300.0,0.000227,8]
[312578853,1706022631465,-300.0,0.000228,8]
[312578854,1706022631474,-173.84,0.00022866,2]
[312578855,1706022631484,-4897.58134927,0.0002288,2]
[312578856,1706022631510,-102.41865073,0.0002288,2]
[312578857,1706022631520,-268.0,0.00022899,2]
[312578858,1706022631529,-150.0,0.00022899,2]
[312578859,1706022631538,-1001.67343958,0.000229,2]
[312578860,1706022631547,-198.58536634,0.000229,2]
[312578861,1706022631556,-2307.50098436,0.000229,2]
[312578862,1706022631565,-300.0,0.000229,8]
[312578863,1706022631574,-151.12841013,0.00022966,2]
[312578864,1706022631583,-203.14380127,0.00022974,2]
[312578865,1706022631593,-361.11042706,0.00022975,2]
[312578866,1706022631602,-319.62,0.00022975,2]
[312578867,1706022631611,-335.10316505,0.00022975,10]
[312578868,1706022631623,-85119.90285988,0.00022976,2]
[312578869,1706022631812,-750.531734,0.00022976,2]
[312578870,1706022632083,-267.3,0.00022976,2]
[312578871,1706022632095,-1550.3468,0.00022976,2]
[312578872,1706022632628,-384.0605025,0.00022976,2]
[312578873,1706022632691,-240939.7422101,0.00022976,2]
[312578874,1706022632748,-258.75,0.00022976,2]
[312578875,1706022632864,-702506.18674189,0.00022976,2]
[312578876,1706022632874,-1771.72376486,0.00022976,2]
[312578877,1706022632883,-3518.4405472,0.00022976,2]
[312578878,1706022632893,-5196.80580802,0.00022976,2]
[312578879,1706022632902,-378.62443341,0.00022976,2]
[312578880,1706022632912,-387.1412581,0.00022977,2]
[312578881,1706022632921,-2458.98997788,0.00022977,2]
[312578882,1706022632931,-945.00549617,0.00022977,2]
[312578883,1706022632940,-288.93310823,0.00022977,2]
[312578884,1706022632949,-663.72342091,0.00022977,2]
[312578885,1706022632958,-164.17736648,0.00022977,2]
[312578887,1706022632967,-1896.96847133,0.00022977,2]
[312578889,1706022632977,-3553.49162746,0.00022978,2]
[312578890,1706022632986,-98895.60227209,0.0002298,2]
[312578891,1706022632995,-419.65429874,0.00022987,2]
[312578892,1706022633004,-151.12841013,0.0002299,2]
[312578893,1706022633013,-2246.77852355,0.00022997,2]
[312578894,1706022633023,-208.49754271,0.00022997,2]
[312578895,1706022633032,-386.58368493,0.00022997,2]
[312578896,1706022633041,-4273.6526089,0.00022997,2]
[312578897,1706022633050,-167.08344621,0.00022997,2]
[312578898,1706022633060,-255.81339565,0.00022997,2]
[312578899,1706022633068,-564.44970192,0.00022997,2]
[312578900,1706022633078,-505.93786648,0.00022997,2]
[312578901,1706022633087,-287.2230766,0.00022997,2]
[312578902,1706022633096,-155.38567074,0.00022997,2]
[312578903,1706022633106,-2384.46949878,0.00022997,2]
[312578904,1706022633115,-232.86949324,0.00022997,2]
[312578905,1706022633126,-156.03114345,0.00022997,2]
[312578906,1706022633135,-600.001725,0.00022997,2]
[312578907,1706022633145,-4281.36154704,0.00022997,2]
[312578908,1706022633154,-457.96849023,0.00022997,2]
[312578909,1706022633163,-169.09938026,0.00022997,2]
[312578910,1706022633173,-155.0,0.00022998,2]
[312578911,1706022633182,-1142.23339163,0.00022998,2]
[312578912,1706022633191,-156.29412186,0.00022998,2]
[312578913,1706022633201,-157.59096502,0.00022998,2]
[312578914,1706022633211,-1228.167174,0.00022998,2]
[312578915,1706022633221,-195.20540532,0.00022998,2]
[312578916,1706022633231,-248.15907292,0.00022998,2]
[312578917,1706022633241,-1046.17658678,0.00022998,2]
[312578918,1706022633251,-204.25460702,0.00022998,2]
[312578919,1706022633261,-6437.51501996,0.00022998,2]
[312578920,1706022633272,-219.93074894,0.00022998,2]
[312578921,1706022633282,-308.66059738,0.00022998,2]
[312578922,1706022633291,-2146.87991109,0.00022999,2]
[312578923,1706022633301,-215.39954746,0.00022999,2]
[312578924,1706022633310,-178.81599619,0.00022999,2]
[312578925,1706022633320,-359.23512276,0.00022999,2]
[312578926,1706022633329,-219.68112856,0.00022999,2]
[312578927,1706022633338,-150.0,0.00022999,2]
[312578928,1706022633347,-150.0,0.00022999,2]
[312578929,1706022633356,-150.0,0.00022999,2]
[312578930,1706022633366,-150.0,0.00022999,2]
[312578931,1706022633378,-150.0,0.00022999,2]
[312578932,1706022633392,-150.0,0.00022999,2]
[312578933,1706022633402,-150.0,0.00022999,2]
[312578934,1706022633411,-150.0,0.00022999,2]
[312578935,1706022633420,-150.0,0.00022999,2]
[312578936,1706022633432,-150.0,0.00022999,2]
[312578937,1706022633442,-150.0,0.00022999,2]
[312578938,1706022633452,-150.0,0.00022999,2]
[312578939,1706022633463,-150.0,0.00022999,2]
[312578940,1706022633473,-150.0,0.00022999,2]
[312578941,1706022633483,-150.0,0.00022999,2]
[312578942,1706022633494,-150.0,0.00022999,2]
[312578943,1706022633505,-2669.7235906,0.00023,2]
[312578944,1706022633515,-266234.46486223,0.00023,2]
[312578971,1706022637537,-2903.66792719,0.00022999,2]
[312578973,1706022637547,-352462.61062545,0.00023,2]
[312578976,1706022637557,-454.30031542,0.00023,2]
[312578978,1706022637569,-1197.93357264,0.00023,2]
[312578983,1706022637613,-77674.10510059,0.00023,2]
[312578985,1706022637624,-35156.16557008,0.00023,2]
[312578987,1706022637640,-3987.50868601,0.00023,2]
[312578988,1706022637651,-2062.21623981,0.00023,2]
[312578989,1706022637662,-10800188.21262321,0.00023,2]
[312578990,1706022637672,-311345.02948469,0.00023,2]
[312578991,1706022637683,-24319.19620216,0.00023,2]
[312578992,1706022637702,-14353.05955936,0.00023,2]
[312578993,1706022637714,-68451.82952525,0.00023,2]
[312578994,1706022637725,-83815.43486401,0.00023,2]
[312578995,1706022637736,-3897.98650563,0.00023,2]
[312578996,1706022637747,-649531.9118765,0.00023,2]
[312578997,1706022637775,-2836.18535151,0.00023,2]
[312579002,1706022638031,-53050.70674725,0.00023,2]
[312579003,1706022638042,-324.29368323,0.00023,2]
[312579004,1706022639906,-16487.08139133,0.00023,2]
[312579005,1706022639918,-2650.5723104,0.00023,2]
[312579006,1706022639972,-7065.1708758,0.00023,2]
[312579007,1706022639984,-428.96165055,0.00023,2]
[312579008,1706022640043,-62330.75514087,0.00023,2]
[312579009,1706022640080,-1478.37000005,0.00023,2]
[312579010,1706022640092,-2400.57503415,0.00023,2]
[312579011,1706022640104,-11733.70872138,0.00023,2]
[312579012,1706022640116,-2155.29495823,0.00023,2]
[312579013,1706022640850,-83748.07600616,0.00023,2]
[312579014,1706022640862,-263.74827404,0.00023,2]
[312579015,1706022640873,-5364.02240599,0.00023,2]
[312579060,1706022642437,-659.90410853,0.00023,2]
[312579064,1706022642449,-3841.61004489,0.00023,2]
[312579069,1706022642461,-3454.32107283,0.00023,2]
[312579072,1706022642472,-13295.3066489,0.00023,2]
[312579076,1706022642484,-815.2577569,0.00023,2]
[312579099,1706022642630,-2546.9225031,0.00023,2]
[312579101,1706022642644,-2656.46845047,0.00023,2]
[312579103,1706022642656,-8503.67718398,0.00023,2]
[312579105,1706022642668,-2539.79302818,0.00023,2]
[312579108,1706022642684,-23403.44583835,0.00023,2]
[312579113,1706022642721,-296.375,0.00023,2]
[312579123,1706022642792,2277.19029442,0.00017232,2]
[312579251,1706022645531,-14668.44952483,0.000229,2]
[312579252,1706022645543,-40886.55047517,0.000229,2]
[312579253,1706022645552,-5124.80758025,0.00022976,2]
[312579254,1706022645561,-155.0,0.00022999,2]
[312579255,1706022645570,-31413.46344458,0.00023,2]
[312579256,1706022645581,-480.65261314,0.00023,2]
[312579257,1706022645755,-18808.32606359,0.00023,2]
[312579258,1706022645766,-3861.32098248,0.00023,2]
[312579259,1706022645778,-8250.0,0.00023,2]
[312579260,1706022645793,-1451.4277818,0.00023,2]
[312579261,1706022645804,-542.77583953,0.00023,2]
[312579262,1706022645816,-552.3024642,0.00023,2]
[312579263,1706022645827,-5759.51436204,0.00023,2]
[312579264,1706022645843,-3618.23728068,0.00023,2]
[312579265,1706022645855,-1055.92589301,0.00023,2]
[312579266,1706022645867,-601.41,0.00023,2]
[312579267,1706022645878,-8752.60536458,0.00023,2]
[312579268,1706022645891,-1564.76968043,0.00023,2]
[312579269,1706022645902,-4050.44310025,0.00023,2]
[312579270,1706022645922,-1310.89507752,0.00023,2]
[312579271,1706022645955,-9268.93694529,0.00023,2]
[312579272,1706022645967,-7776.32662537,0.00023,2]
[312579273,1706022645979,-1008.38888985,0.00023,2]
[312579274,1706022645991,-14119.11814265,0.00023,2]
[312579275,1706022646003,-671.12238823,0.00023,2]
[312579276,1706022646014,-43415.41492517,0.00023,2]
[312579277,1706022646025,-246.80479988,0.00023,2]
[312579278,1706022646034,-176.47,0.00023096,2]
[312579279,1706022646043,-157.83,0.00023158,2]
[312579280,1706022646053,-238.32,0.00023318,2]
[312579281,1706022646064,-185.29,0.00023499,2]
[312579282,1706022646073,-292.84,0.00023562,2]
[312579283,1706022646083,-176.47,0.00023644,2]
[312579284,1706022646092,-289.73,0.0002397,2]
[312579285,1706022646102,-201.31020997,0.00024,2]
[312579286,1706022646112,-155.0,0.00024,2]
[312579287,1706022646121,-299.999999,0.000241,2]
[312579288,1706022646132,-176.47,0.00024192,2]
[312579289,1706022646141,-167.0,0.00024297,2]
[312579290,1706022646150,-168.99,0.00024297,2]
[312579291,1706022646160,-292.84,0.00024373,2]
[312579293,1706022646169,-325.29759389,0.0002442,2]
[312579295,1706022646179,-452.02,0.00024464,2]
[312579297,1706022646188,-328.0,0.00024587,2]
[312579299,1706022646197,-250.0,0.00024658,2]
[312579301,1706022646207,-150.0,0.00024658,2]
[312579303,1706022646216,-295.38353591,0.00024658,2]
[312579305,1706022646226,-238.32,0.00024688,2]
[312579307,1706022646235,-3291.0,0.000247,2]
[312579309,1706022646244,-176.47,0.0002474,2]
[312579311,1706022646253,-289.73,0.00024818,2]
[312579313,1706022646262,-192.4053857,0.00025,5]
[312579315,1706022646271,-167.53295169,0.00025,2]
[312579317,1706022646281,-934.50089976,0.00025,2]
[312579319,1706022646291,-303.74458375,0.00025,2]
[312579321,1706022646300,-202.21011162,0.00025,2]
[312579323,1706022646309,-450.0,0.00025,3]
[312579325,1706022646319,-158.83060076,0.00025,2]
[312579327,1706022646328,-167.0,0.00025099,2]
[312579329,1706022646338,-840.0,0.00025182,2]
[312579331,1706022646347,-292.84,0.00025185,2]
[312579333,1706022646360,-176.47,0.00025288,2]
[312579335,1706022646370,-289.73,0.00025666,2]
[312579337,1706022646379,-176.47,0.00025836,2]
[312579340,1706022646395,-167.0,0.00025901,2]
[312579342,1706022646405,-735.05,0.0002614,2]
[312579344,1706022646414,-176.47,0.00026384,2]
[312579345,1706022646423,-289.73,0.00026514,2]
[312579348,1706022646434,-1750.0,0.00026575,2]
[312579350,1706022646443,-175.17,0.00026575,2]
[312579352,1706022646453,-167.0,0.00026703,2]
[312579354,1706022646463,-452.02,0.00026728,2]
[312579356,1706022646472,-334.45772468,0.00026932,2]
[312579358,1706022646481,-416.53728954,0.00027,2]
[312579360,1706022646491,-500.0,0.00027,3]
[312579362,1706022646500,-195.31763106,0.00027,2]
[312579364,1706022646510,-167.85,0.00027175,2]
[312579366,1706022646519,-328.0,0.00027319,2]
[312579368,1706022646528,-289.73,0.00027362,2]
[312579370,1706022646538,-150.0,0.00027397,2]
[312579372,1706022646547,-155.0,0.00027397,2]
[312579374,1706022646557,-455.37,0.00027397,2]
[312579376,1706022646566,-694.77,0.00027397,2]
[312579378,1706022646577,-455.17,0.00027397,2]
[312579380,1706022646587,-235.68,0.000274,2]
[312579382,1706022646596,-235.68,0.000274,2]
[312579384,1706022646606,-235.68,0.000274,2]
[312579386,1706022646615,-235.68,0.000274,2]
[312579387,1706022646625,-235.68,0.000274,2]
[312579389,1706022646637,-235.68,0.000274,2]
[312579391,1706022646647,-235.68,0.000274,2]
[312579393,1706022646656,-235.68,0.000274,2]
[312579395,1706022646666,-235.68,0.000274,2]
[312579397,1706022646676,-235.68,0.000274,2]
[312579399,1706022646686,-167.0,0.00027505,2]
[312579401,1706022646697,-455.17,0.00027556,2]
[312579403,1706022646706,-455.37,0.00027686,2]
[312579405,1706022646716,-694.77,0.00027686,2]
[312579406,1706022646726,-455.17,0.00027714,2]
[312579407,1706022646736,-735.05,0.00027783,2]
[312579408,1706022646746,-455.17,0.00027872,2]
[312579410,1706022646755,-151.41324109,0.00027945,2]
[312579412,1706022646765,-455.37,0.00027974,2]
[312579413,1706022646774,-694.77,0.00027974,2]
[312579414,1706022646784,-840.0,0.0002798,2]
[312579415,1706022646794,-760.47012572,0.00028,2]
[312579416,1706022646803,-455.17,0.0002803,2]
[312579417,1706022646813,-455.17,0.00028189,2]
[312579418,1706022646822,-289.73,0.00028209,2]
[312579419,1706022646832,-455.37,0.00028262,2]
[312579420,1706022646842,-694.77,0.00028262,2]
[312579421,1706022646853,-167.0,0.00028307,2]
[312579422,1706022646867,-168.99,0.00028307,2]
[312579423,1706022646879,-455.17,0.00028347,2]
[312579424,1706022646891,-455.17,0.00028505,2]
[312579425,1706022646901,-455.37,0.00028551,2]
[312579426,1706022646911,-694.77,0.00028551,2]
[312579427,1706022646920,-455.17,0.00028664,2]
[312579428,1706022646930,-155.0,0.00028767,2]
[312579429,1706022646940,-455.17,0.00028822,2]
[312579430,1706022646949,-455.37,0.00028839,2]
[312579431,1706022646959,-694.77,0.00028839,2]
[312579432,1706022646970,-452.02,0.00028991,2]
[312579433,1706022646980,-326.64714414,0.00029,2]
[312579434,1706022646989,-550.0,0.00029,3]
[312579435,1706022647000,-1184.27940036,0.00029,15]
[312579436,1706022647010,-289.73,0.00029057,2]
[312579437,1706022647019,-455.37,0.00029128,2]
[312579438,1706022647028,-694.77,0.00029128,2]
[312579439,1706022647038,-455.37,0.00029416,2]
[312579440,1706022647048,-694.77,0.00029416,2]
[312579441,1706022647057,-735.05,0.00029427,2]
[312579442,1706022647067,-1098.64522824,0.00029444,2]
[312579443,1706022647077,-150.0,0.00029499,2]
[312579444,1706022647087,-150.0,0.00029499,2]
[312579445,1706022647098,-155.65633722,0.000295,3]
[312579446,1706022647108,-455.37,0.00029704,2]
[312579447,1706022647117,-694.77,0.00029704,2]
[312579448,1706022647127,-175.58250697,0.000298,2]
[312579449,1706022647138,-731.56644972,0.000298,2]
[312579450,1706022647148,-2000.0,0.000299,3]
[312579451,1706022647157,-195.10400093,0.000299,2]
[312579452,1706022647166,-455.37,0.00029993,2]
[312579453,1706022647176,-694.77,0.00029993,2]
[312579454,1706022647185,-168.93633082,0.0003,2]
[312579455,1706022647195,-155.0,0.0003,2]
[312579456,1706022647205,-113891.671752,0.0003,2]
[312579457,1706022647261,-729.0,0.0003,2]
[312579458,1706022647273,-559.3,0.0003,2]
[312579459,1706022647285,-603.18040177,0.0003,2]
[312579460,1706022647297,-260.16887411,0.0003,2]
[312579461,1706022647309,-285.975,0.0003,2]
[312579462,1706022647321,-442.00189353,0.0003,2]
[312579463,1706022647766,-127085.71092905,0.0003,2]
[312579464,1706022647782,-34833.38067288,0.0003,2]
[312579465,1706022647799,-13476.17430763,0.0003,2]
[312579466,1706022647812,-420.11600238,0.0003,2]
[312579467,1706022647824,-287.8145,0.0003,2]
[312579468,1706022647850,-452.73228,0.0003,2]
[312579469,1706022647862,-386767.78964558,0.0003,2]
[312579470,1706022647873,-5623.87809387,0.0003,2]
[312579471,1706022647886,-409.26145146,0.0003,2]
[312579472,1706022647896,-361.90503468,0.0003,4]
[312579473,1706022647906,-763.04394456,0.0003,4]
[312579474,1706022647916,-2201.08997991,0.0003,5]
[312579475,1706022647926,-583.13958922,0.0003,2]
[312579476,1706022647936,-692.52631931,0.0003,2]
[312579477,1706022647945,-1000.0,0.0003,2]
[312579478,1706022647955,-328.0,0.00030051,2]
[312579479,1706022647965,-195.13,0.00030137,2]
[312579480,1706022647975,-155.0,0.00030137,2]
[312579481,1706022647985,-455.37,0.00030281,2]
[312579482,1706022647994,-694.77,0.00030281,2]
[312579483,1706022648005,-212.33,0.000304,2]
[312579484,1706022648015,-455.37,0.00030569,2]
[312579485,1706022648025,-694.77,0.00030569,2]
[312579486,1706022648034,-366.59,0.00030595,2]
[312579487,1706022648044,-840.0,0.00030778,2]
[312579488,1706022648054,-455.37,0.00030858,2]
[312579489,1706022648064,-694.77,0.00030858,2]
[312579490,1706022648074,-600.0,0.00031,3]
[312579491,1706022648083,-735.05,0.00031071,2]
[312579492,1706022648093,-455.37,0.00031146,2]
[312579493,1706022648102,-694.77,0.00031146,2]
[312579494,1706022648112,-452.02,0.00031255,2]
[312579495,1706022648122,-455.37,0.00031435,2]
[312579496,1706022648132,-694.77,0.00031435,2]
[312579497,1706022648143,-180.0,0.00031644,2]
[312579498,1706022648153,-455.37,0.00031723,2]
[312579499,1706022648162,-694.77,0.00031723,2]
[312579500,1706022648172,-55214.8149861,0.000318,3]
[312579501,1706022648181,-155.0,0.00032,2]
[312579502,1706022648191,-4016.5287535,0.00032,2]
[312579503,1706022648201,-455.37,0.00032011,2]
[312579504,1706022648210,-694.77,0.00032011,2]
[312579505,1706022648219,-197.18952131,0.00032288,4]
[312579506,1706022648229,-3963.30591551,0.00032288,4]
[312579507,1706022648238,-155.0,0.00032288,4]
[312579508,1706022648248,-455.37,0.000323,2]
[312579509,1706022648257,-694.77,0.000323,2]
[312579510,1706022648267,-157.10983001,0.000324,4]
[312579511,1706022648276,-202.14005141,0.000325,2]
[312579512,1706022648286,-455.37,0.00032588,2]
[312579513,1706022648295,-694.77,0.00032588,2]
[312579514,1706022648304,-167.85,0.00032611,2]
[312579515,1706022648314,-4450.66923536,0.000327,2]
[312579516,1706022648323,-4450.6692352,0.000327,2]
[312579517,1706022648332,-4450.6692352,0.000327,2]
[312579518,1706022648341,-4450.6692352,0.000327,2]
[312579519,1706022648351,-4450.6692352,0.000327,2]
[312579520,1706022648360,-4450.6692352,0.000327,2]
[312579521,1706022648370,-4450.6692352,0.000327,2]
[312579522,1706022648379,-4450.6692352,0.000327,2]
[312579523,1706022648391,-4450.6692352,0.000327,2]
[312579524,1706022648402,-4450.6692352,0.000327,2]
[312579525,1706022648412,-4450.6692352,0.000327,2]
[312579526,1706022648423,-4450.6692352,0.000327,2]
[312579527,1706022648433,-4450.6692352,0.000327,2]
[312579528,1706022648443,-4450.6692352,0.000327,2]
[312579529,1706022648457,-4450.6692352,0.000327,2]
[312579530,1706022648466,-4450.6692352,0.000327,2]
[312579531,1706022648476,-4450.6692352,0.000327,2]
[312579532,1706022648485,-4450.6692352,0.000327,2]
[312579533,1706022648496,-4450.6692352,0.000327,2]
[312579534,1706022648507,-4450.6692352,0.000327,2]
[312579535,1706022648517,-735.05,0.00032715,2]
[312579536,1706022648526,-155.57731496,0.00032718,2]
[312579537,1706022648536,-658.212,0.00032773,2]
[312579538,1706022648546,-371.182,0.00032773,2]
[312579539,1706022648555,-547.883,0.00032773,2]
[312579540,1706022648565,-1031.0,0.00032773,2]
[312579541,1706022648574,-364.676,0.00032775,2]
[312579542,1706022648584,-837.0,0.00032775,2]